[Event "44th Chess Olympiad Women 2022"]
[Site "Chennai"]
[Date "2022.07.31"]
[Round "3.16"]
[White "Hapala, Elisabeth"]
[Black "Pratyusha, Bodda"]
[Result "0-1"]
[WhiteElo "2113"]
[BlackElo "2310"]
[Annotator "RC"]
[PlyCount "117"]
[EventDate "2022.??.??"]
[TimeControl "60"]

1. e4 {[%emt 0:00:01]} c6 {[%emt 0:00:33]} 2. d4 {[%emt 0:00:06]} d5 {[%emt 0:
00:00]} 3. e5 {[%emt 0:00:06]} c5 {[%emt 0:00:16]} 4. dxc5 {[%emt 0:00:06]} e6
{[%emt 0:00:12]} 5. a3 {[%emt 0:00:25]} Nc6 {[%emt 0:01:09]} 6. Nf3 {[%emt 0:
00:00]} Bxc5 {[%emt 0:00:17]} 7. b4 {[%emt 0:00:46]} Bb6 {[%emt 0:00:06]} 8.
Bd3 {[%emt 0:00:53]} Nge7 {[%emt 0:00:22]} 9. O-O {[%emt 0:00:31]} Ng6 {
[%emt 0:00:42]} 10. Bb2 {[%emt 0:00:20]} a6 {[%emt 0:00:54]} 11. Re1 {[%emt 0:
00:00]} O-O {[%emt 0:09:41]} 12. Nbd2 {[%emt 0:01:35]} Bd7 {[%emt 0:00:16]} 13.
c4 {[%emt 0:04:52]} dxc4 {[%emt 0:04:38]} 14. Nxc4 {[%emt 0:00:42]} Bc7 {
[%emt 0:06:45]} 15. Rc1 {[%emt 0:12:34]} Nce7 {[%emt 0:09:00]} 16. Qc2 {
[%emt 0:12:59]} Bc6 {[%emt 0:05:19]} 17. Ncd2 {[%emt 0:18:24]} Rc8 {[%emt 0:00:
00]} 18. Qb1 {[%emt 0:00:15]} Bd5 {[%emt 0:01:00]} 19. h4 {[%emt 0:07:03]} Ba2
{[%emt 0:04:07]} 20. Qxa2 {[%emt 0:02:38]} Qxd3 {[%emt 0:00:11]} 21. Ne4 {
[%emt 0:06:57]} Nf4 {[%emt 0:02:27]} 22. Rcd1 {[%emt 0:03:58]} Ne2+ {[%emt 0:
00:00]} 23. Kf1 {[%emt 0:00:05]} Ng3+ {[%emt 0:04:47]} 24. Kg1 {[%emt 0:00:05]}
Ne2+ {[%emt 0:00:25]} 25. Kf1 {[%emt 0:00:27]} Qxe4 {[%emt 0:01:11]} 26. Rxe2 {
[%emt 0:00:06]} Qg6 {[%emt 0:00:23]} 27. Qb3 {[%emt 0:05:40]} Nd5 {[%emt 0:00:
00]} 28. Rd4 {[%emt 0:05:05]} b5 {[%emt 0:05:09]} 29. Qc2 {[%emt 0:01:03]} Bb6
{[%emt 0:02:52]} 30. Qxg6 {[%emt 0:00:15]} hxg6 {[%emt 0:00:04]} 31. Rdd2 {
[%emt 0:01:10]} Rc4 {[%emt 0:02:02]} 32. g3 {[%emt 0:00:32]} Rfc8 {[%emt 0:00:
00]} 33. Re1 {[%emt 0:01:17]} a5 {[%emt 0:02:00]} 34. Bd4 {[%emt 0:01:17]} axb4
{[%emt 0:07:51]} 35. axb4 {[%emt 0:00:28]} Bxd4 {[%emt 0:03:45]} 36. Rxd4 {
[%emt 0:00:06]} Nxb4 {[%emt 0:00:24]} 37. Rd7 {[%emt 0:01:07]} Nd5 {[%emt 0:00:
00]} 38. Ng5 {[%emt 0:00:29]} R4c7 {[%emt 0:01:49]} 39. Rxc7 {[%emt 0:00:05]}
Rxc7 {[%emt 0:01:02]} 40. Rb1 {[%emt 0:00:56]} b4 {[%emt 0:00:00]} 41. Ne4 {
[%emt 0:07:08]} Kf8 {[%emt 0:00:38]} 42. Ke1 {[%emt 0:01:30]} Rc4 {[%emt 0:00:
00]} 43. Nd6 {[%emt 0:08:37]} Rc2 {[%emt 0:01:49]} 44. Ne4 {[%emt 0:08:46]} Ke7
{[%emt 0:01:09]} 45. Nd2 {[%emt 0:02:51]} Ra2 {[%emt 0:04:04]} 46. Rb3 {
[%emt 0:02:03]} Kd7 {[%emt 0:01:29]} 47. Rf3 {[%emt 0:00:45]} Nc3 {[%emt 0:00:
00]} 48. Nb3 {[%emt 0:00:50]} Ke7 {[%emt 0:04:09]} 49. Rf4 {[%emt 0:01:43]} Nd5
{[%emt 0:00:37]} 50. Rc4 {[%emt 0:00:27]} Rb2 {[%emt 0:05:40]} 51. Nd2 {
[%emt 0:00:29]} f6 {[%emt 0:02:03]} 52. exf6+ {[%emt 0:00:41]} gxf6 {[%emt 0:
00:00]} 53. g4 {[%emt 0:00:31]} Ra2 {[%emt 0:00:42]} 54. Kd1 {[%emt 0:00:39]}
Ra1+ {[%emt 0:02:24]} 55. Kc2 {[%emt 0:00:05]} Rh1 {[%emt 0:00:08]} 56. g5 {
[%emt 0:00:25]} fxg5 {[%emt 0:00:21]} 57. hxg5 {[%emt 0:00:05]} Rh2 {[%emt 0:
00:00]} 58. Kb3 {[%emt 0:01:27]} Rxf2 {[%emt 0:00:29]} 59. Ne4 {[%emt 0:01:02]}
0-1

[Event "44th Chess Olympiad Women 2022"]
[Site "Chennai"]
[Date "2022.07.31"]
[Round "3.16"]
[White "Karavade, Eesha"]
[Black "Newrkla, Katharina"]
[Result "1/2-1/2"]
[WhiteElo "2339"]
[BlackElo "2265"]
[Annotator "RC"]
[PlyCount "54"]
[EventDate "2022.??.??"]
[TimeControl "60"]

1. e4 {[%emt 0:00:27]} c5 {[%emt 0:00:05]} 2. Nf3 {[%emt 0:00:13]} d6 {[%emt 0:
00:00]} 3. Bb5+ {[%emt 0:00:25]} Nd7 {[%emt 0:00:22]} 4. d4 {[%emt 0:00:38]}
cxd4 {[%emt 0:00:28]} 5. Qxd4 {[%emt 0:00:23]} a6 {[%emt 0:03:59]} 6. Bxd7+ {
[%emt 0:00:14]} Bxd7 {[%emt 0:02:28]} 7. c4 {[%emt 0:01:07]} e5 {[%emt 0:02:39]
} 8. Qd3 {[%emt 0:00:08]} Rc8 {[%emt 0:02:20]} 9. Nc3 {[%emt 0:01:56]} Be6 {
[%emt 0:04:50]} 10. b3 {[%emt 0:02:37]} h6 {[%emt 0:00:49]} 11. O-O {[%emt 0:
00:00]} Nf6 {[%emt 0:02:09]} 12. Ne1 {[%emt 0:10:04]} Qc7 {[%emt 0:07:19]} 13.
Bd2 {[%emt 0:01:29]} Qc6 {[%emt 0:06:03]} 14. Nc2 {[%emt 0:14:44]} b5 {[%emt 0:
00:00]} 15. cxb5 {[%emt 0:04:11]} axb5 {[%emt 0:00:06]} 16. Nb4 {[%emt 0:00:29]
} Qb7 {[%emt 0:02:49]} 17. Rfe1 {[%emt 0:00:22]} Rc5 {[%emt 0:06:03]} 18. Be3 {
[%emt 0:06:28]} Rc8 {[%emt 0:14:46]} 19. f3 {[%emt 0:06:56]} Bd7 {[%emt 0:00:
00]} 20. Ncd5 {[%emt 0:05:49]} Nxd5 {[%emt 0:00:20]} 21. Nxd5 {[%emt 0:00:08]}
Be7 {[%emt 0:03:17]} 22. Rec1 {[%emt 0:07:43]} Rxc1+ {[%emt 0:01:06]} 23. Rxc1
{[%emt 0:00:04]} Bd8 {[%emt 0:01:53]} 24. Nb4 {[%emt 0:00:21]} Bb6 {[%emt 0:00:
00]} 25. Nd5 {[%emt 0:03:53]} Bd8 {[%emt 0:00:39]} 26. Nb4 {[%emt 0:06:37]} Bb6
{[%emt 0:00:29]} 27. Nd5 {[%emt 0:00:07]} Bd8 {[%emt 0:01:31]} 1/2-1/2

[Event "44th Chess Olympiad Women 2022"]
[Site "Chennai"]
[Date "2022.07.31"]
[Round "3.16"]
[White "Sahithi Varshini M"]
[Black "Mayrhuber, Nikola"]
[Result "0-1"]
[WhiteElo "2312"]
[BlackElo "2141"]
[Annotator "RC"]
[PlyCount "92"]
[EventDate "2022.??.??"]
[TimeControl "60"]

1. e4 {[%emt 0:00:18]} c5 {[%emt 0:00:06]} 2. Nf3 {[%emt 0:00:07]} d6 {[%emt 0:
00:00]} 3. Bb5+ {[%emt 0:00:25]} Bd7 {[%emt 0:00:34]} 4. Bxd7+ {[%emt 0:00:14]}
Qxd7 {[%emt 0:00:21]} 5. c4 {[%emt 0:03:28]} Nc6 {[%emt 0:01:14]} 6. d4 {
[%emt 0:03:55]} cxd4 {[%emt 0:01:00]} 7. Nxd4 {[%emt 0:00:09]} g6 {[%emt 0:00:
00]} 8. h3 {[%emt 0:07:54]} Bg7 {[%emt 0:01:58]} 9. Be3 {[%emt 0:00:07]} Nf6 {
[%emt 0:04:20]} 10. Nc3 {[%emt 0:00:30]} O-O {[%emt 0:03:38]} 11. O-O {[%emt 0:
00:00]} Rfc8 {[%emt 0:21:59]} 12. b3 {[%emt 0:00:50]} Nxd4 {[%emt 0:08:48]} 13.
Bxd4 {[%emt 0:00:18]} b5 {[%emt 0:02:54]} 14. Nxb5 {[%emt 0:03:28]} Nxe4 {
[%emt 0:03:07]} 15. Bxg7 {[%emt 0:03:25]} Kxg7 {[%emt 0:04:13]} 16. Re1 {
[%emt 0:09:17]} f5 {[%emt 0:11:09]} 17. Qd4+ {[%emt 0:03:30]} e5 {[%emt 0:00:
00]} 18. Qd3 {[%emt 0:01:18]} a6 {[%emt 0:00:46]} 19. Nc3 {[%emt 0:00:19]} Nxc3
{[%emt 0:09:20]} 20. Qxc3 {[%emt 0:00:07]} Rc5 {[%emt 0:07:32]} 21. Rad1 {
[%emt 0:00:08]} Qc7 {[%emt 0:01:11]} 22. Rd3 {[%emt 0:02:49]} Rd8 {[%emt 0:00:
00]} 23. f4 {[%emt 0:05:05]} Kf6 {[%emt 0:00:30]} 24. b4 {[%emt 0:12:08]} Rxc4
{[%emt 0:04:22]} 25. Rxd6+ {[%emt 0:00:05]} Kf7 {[%emt 0:04:35]} 26. Qxc4+ {
[%emt 0:00:23]} Qxc4 {[%emt 0:00:19]} 27. Rxd8 {[%emt 0:00:06]} Qxf4 {[%emt 0:
00:00]} 28. a3 {[%emt 0:04:10]} e4 {[%emt 0:00:32]} 29. Rd7+ {[%emt 0:00:53]}
Kf6 {[%emt 0:01:00]} 30. Rxh7 {[%emt 0:04:28]} e3 {[%emt 0:00:19]} 31. Re2 {
[%emt 0:00:10]} Qd4 {[%emt 0:01:39]} 32. Kf1 {[%emt 0:00:35]} Qd1+ {[%emt 0:00:
00]} 33. Re1 {[%emt 0:00:01]} Qd3+ {[%emt 0:00:34]} 34. Re2 {[%emt 0:00:06]} f4
{[%emt 0:00:49]} 35. Rh8 {[%emt 0:00:50]} Qd1+ {[%emt 0:00:33]} 36. Re1 {
[%emt 0:00:05]} Qd3+ {[%emt 0:00:28]} 37. Re2 {[%emt 0:00:05]} Qb1+ {[%emt 0:
00:00]} 38. Re1 {[%emt 0:00:05]} Qb2 {[%emt 0:00:38]} 39. Rf8+ {[%emt 0:00:13]}
Kg5 {[%emt 0:00:27]} 40. Re2 {[%emt 0:00:21]} Qc1+ {[%emt 0:00:38]} 41. Re1 {
[%emt 0:30:06]} Qb2 {[%emt 0:30:45]} 42. Re2 {[%emt 0:00:07]} Qxa3 {[%emt 0:00:
00]} 43. g3 {[%emt 0:01:28]} Qc1+ {[%emt 0:00:00]} 44. Re1 {[%emt 0:00:00]}
Qc4+ {[%emt 0:00:00]} 45. Re2 {[%emt 0:00:00]} fxg3 {[%emt 0:00:00]} 46. Rf3 {
[%emt 0:00:00]} g2+ {[%emt 0:00:00]} 0-1

[Event "44th Chess Olympiad Women 2022"]
[Site "Chennai"]
[Date "2022.07.31"]
[Round "3.17"]
[White "Alinasab, Mobina"]
[Black "Roebers, Eline"]
[Result "1/2-1/2"]
[WhiteElo "2364"]
[BlackElo "2344"]
[Annotator "RC"]
[PlyCount "76"]
[EventDate "2022.??.??"]
[TimeControl "60"]

1. e4 {[%emt 0:00:18]} c5 {[%emt 0:00:38]} 2. Nf3 {[%emt 0:00:43]} d6 {[%emt 0:
00:00]} 3. d4 {[%emt 0:00:47]} cxd4 {[%emt 0:00:27]} 4. Nxd4 {[%emt 0:00:31]}
Nf6 {[%emt 0:00:28]} 5. Nc3 {[%emt 0:00:34]} a6 {[%emt 0:00:29]} 6. Be3 {
[%emt 0:00:56]} e5 {[%emt 0:02:57]} 7. Nf3 {[%emt 0:00:13]} Be7 {[%emt 0:00:19]
} 8. h3 {[%emt 0:03:12]} Be6 {[%emt 0:02:27]} 9. g4 {[%emt 0:04:04]} h6 {
[%emt 0:02:38]} 10. g5 {[%emt 0:04:42]} hxg5 {[%emt 0:01:24]} 11. Nxg5 {
[%emt 0:00:26]} d5 {[%emt 0:02:04]} 12. exd5 {[%emt 0:10:05]} Bxd5 {[%emt 0:00:
00]} 13. Nxd5 {[%emt 0:16:08]} Qxd5 {[%emt 0:13:27]} 14. Qxd5 {[%emt 0:07:33]}
Nxd5 {[%emt 0:00:07]} 15. Bd2 {[%emt 0:00:14]} Nc6 {[%emt 0:14:42]} 16. O-O-O {
[%emt 0:06:06]} f6 {[%emt 0:09:22]} 17. Ne4 {[%emt 0:07:41]} Rh4 {[%emt 0:00:
00]} 18. Bg2 {[%emt 0:10:27]} Rd8 {[%emt 0:07:58]} 19. c3 {[%emt 0:01:23]} g6 {
[%emt 0:06:33]} 20. Ng3 {[%emt 0:10:36]} Nf4 {[%emt 0:02:15]} 21. Bxf4 {
[%emt 0:01:36]} Rxf4 {[%emt 0:00:35]} 22. f3 {[%emt 0:04:00]} f5 {[%emt 0:00:
00]} 23. Ne2 {[%emt 0:03:39]} Ra4 {[%emt 0:03:11]} 24. Kb1 {[%emt 0:01:09]} Bg5
{[%emt 0:05:29]} 25. Rhe1 {[%emt 0:01:48]} Bh4 {[%emt 0:04:02]} 26. Rf1 {
[%emt 0:00:39]} Ra5 {[%emt 0:00:28]} 27. c4 {[%emt 0:01:55]} Rc5 {[%emt 0:00:
00]} 28. b3 {[%emt 0:00:15]} b5 {[%emt 0:04:20]} 29. cxb5 {[%emt 0:01:00]} axb5
{[%emt 0:00:43]} 30. Rxd8+ {[%emt 0:01:50]} Kxd8 {[%emt 0:00:55]} 31. Rc1 {
[%emt 0:00:56]} Rxc1+ {[%emt 0:01:26]} 32. Kxc1 {[%emt 0:00:01]} Kc7 {[%emt 0:
00:00]} 33. a3 {[%emt 0:00:41]} Be7 {[%emt 0:03:57]} 34. b4 {[%emt 0:00:13]}
Kb6 {[%emt 0:03:04]} 35. Bf1 {[%emt 0:00:54]} Bg5+ {[%emt 0:00:39]} 36. Kc2 {
[%emt 0:00:27]} Be3 {[%emt 0:01:01]} 37. Kd3 {[%emt 0:00:31]} Bg5 {[%emt 0:00:
00]} 38. Kc2 {[%emt 0:00:11]} Be3 {[%emt 0:00:24]} 1/2-1/2

[Event "44th Chess Olympiad Women 2022"]
[Site "Chennai"]
[Date "2022.07.31"]
[Round "3.17"]
[White "Lanchava, Tea"]
[Black "Zahedifar, Anahita"]
[Result "1-0"]
[WhiteElo "2257"]
[BlackElo "2160"]
[Annotator "RC"]
[PlyCount "87"]
[EventDate "2022.??.??"]
[TimeControl "60"]

1. c4 {[%emt 0:00:07]} e6 {[%emt 0:00:17]} 2. Nf3 {[%emt 0:00:59]} Nf6 {
[%emt 0:00:17]} 3. b3 {[%emt 0:01:17]} d5 {[%emt 0:00:25]} 4. g3 {[%emt 0:00:
00]} b6 {[%emt 0:04:32]} 5. Bg2 {[%emt 0:00:04]} Bb7 {[%emt 0:00:33]} 6. O-O {
[%emt 0:01:16]} Bd6 {[%emt 0:01:31]} 7. Nc3 {[%emt 0:01:07]} O-O {[%emt 0:00:
00]} 8. Bb2 {[%emt 0:01:37]} a6 {[%emt 0:03:07]} 9. Rc1 {[%emt 0:08:41]} Qe7 {
[%emt 0:05:23]} 10. Qc2 {[%emt 0:03:42]} c5 {[%emt 0:01:49]} 11. cxd5 {[%emt 0:
00:00]} exd5 {[%emt 0:03:02]} 12. Nh4 {[%emt 0:00:28]} g6 {[%emt 0:02:40]} 13.
e3 {[%emt 0:07:14]} Nbd7 {[%emt 0:12:13]} 14. Ba1 {[%emt 0:02:34]} Ne4 {
[%emt 0:06:42]} 15. f4 {[%emt 0:09:13]} f5 {[%emt 0:13:49]} 16. Nd1 {[%emt 0:
00:00]} Rac8 {[%emt 0:06:31]} 17. d3 {[%emt 0:01:11]} Nef6 {[%emt 0:04:35]} 18.
Re1 {[%emt 0:01:46]} Rc7 {[%emt 0:04:58]} 19. Nf2 {[%emt 0:00:34]} Qf7 {
[%emt 0:06:38]} 20. Qb2 {[%emt 0:01:38]} Re8 {[%emt 0:04:27]} 21. e4 {[%emt 0:
00:00]} dxe4 {[%emt 0:00:50]} 22. dxe4 {[%emt 0:00:11]} fxe4 {[%emt 0:01:26]}
23. Ng4 {[%emt 0:06:39]} Kg7 {[%emt 0:01:36]} 24. Rcd1 {[%emt 0:00:50]} Be7 {
[%emt 0:02:36]} 25. Bxe4 {[%emt 0:08:11]} c4 {[%emt 0:03:36]} 26. Bxb7 {
[%emt 0:04:32]} c3 {[%emt 0:02:07]} 27. Qc2 {[%emt 0:00:36]} Bc5+ {[%emt 0:00:
00]} 28. Nf2 {[%emt 0:03:33]} Rxe1+ {[%emt 0:01:24]} 29. Rxe1 {[%emt 0:00:05]}
Ng4 {[%emt 0:00:44]} 30. Bxc3+ {[%emt 0:04:33]} Kf8 {[%emt 0:02:54]} 31. Bb4 {
[%emt 0:01:53]} Nxf2 {[%emt 0:00:59]} 32. Bxc5+ {[%emt 0:00:37]} Nxc5 {[%emt 0:
00:00]} 33. Qc3 {[%emt 0:02:51]} Kg8 {[%emt 0:02:08]} 34. Qf3 {[%emt 0:00:27]}
Nh3+ {[%emt 0:00:35]} 35. Kg2 {[%emt 0:00:18]} Nxf4+ {[%emt 0:00:15]} 36. gxf4
{[%emt 0:00:48]} Nxb7 {[%emt 0:00:36]} 37. Kh1 {[%emt 0:01:09]} Rd7 {[%emt 0:
00:00]} 38. f5 {[%emt 0:00:25]} g5 {[%emt 0:00:49]} 39. Ng2 {[%emt 0:01:34]}
Nc5 {[%emt 0:00:33]} 40. f6 {[%emt 0:00:17]} h6 {[%emt 0:00:39]} 41. Qc6 {
[%emt 0:10:09]} Nd3 {[%emt 0:05:38]} 42. Qc8+ {[%emt 0:00:47]} Qf8 {[%emt 0:00:
00]} 43. Re8 {[%emt 0:05:26]} Nf2+ {[%emt 0:00:17]} 44. Kg1 {[%emt 0:00:06]}
1-0

[Event "44th Chess Olympiad Women 2022"]
[Site "Chennai"]
[Date "2022.07.31"]
[Round "3.17"]
[White "Mahdian, Anousha"]
[Black "Ratsma, Rosa"]
[Result "0-1"]
[WhiteElo "2161"]
[BlackElo "2226"]
[Annotator "RC"]
[PlyCount "118"]
[EventDate "2022.??.??"]
[TimeControl "60"]

1. c4 {[%emt 0:00:03]} Nf6 {[%emt 0:00:11]} 2. Nc3 {[%emt 0:00:04]} e6 {
[%emt 0:00:27]} 3. e4 {[%emt 0:00:04]} d5 {[%emt 0:00:48]} 4. e5 {[%emt 0:00:
00]} d4 {[%emt 0:00:41]} 5. exf6 {[%emt 0:00:05]} dxc3 {[%emt 0:00:07]} 6. bxc3
{[%emt 0:00:02]} Qxf6 {[%emt 0:00:20]} 7. Nf3 {[%emt 0:00:03]} b6 {[%emt 0:00:
00]} 8. d4 {[%emt 0:01:16]} Bb7 {[%emt 0:02:08]} 9. Bd3 {[%emt 0:02:24]} h6 {
[%emt 0:00:49]} 10. O-O {[%emt 0:00:23]} Nd7 {[%emt 0:06:18]} 11. Nd2 {[%emt 0:
00:00]} Bd6 12. g3 {[%emt 0:00:30]} Qe7 {[%emt 0:01:00]} 13. a4 {[%emt 0:00:30]
} O-O {[%emt 0:00:30]} 14. a5 {[%emt 0:00:30]} Nf6 {[%emt 0:00:30]} 15. Re1 {
[%emt 0:00:30]} Qd7 {[%emt 0:00:30]} 16. Ne4 {[%emt 0:00:30]} Nxe4 {[%emt 0:00:
00]} 17. Bxe4 {[%emt 0:00:30]} Bxe4 {[%emt 0:00:30]} 18. Rxe4 {[%emt 0:00:30]}
Qc6 {[%emt 0:00:30]} 19. d5 {[%emt 0:00:30]} exd5 {[%emt 0:00:30]} 20. Qxd5 {
[%emt 0:00:30]} Qxd5 {[%emt 0:00:30]} 21. cxd5 {[%emt 0:00:30]} Rfe8 {[%emt 0:
00:00]} 22. Rxe8+ {[%emt 0:00:30]} Rxe8 {[%emt 0:00:30]} 23. Be3 {[%emt 0:00:
00]} Kf8 {[%emt 0:00:30]} 24. Kg2 {[%emt 0:00:30]} Ke7 {[%emt 0:00:30]} 25. Bd4
{[%emt 0:00:30]} f6 {[%emt 0:00:30]} 26. axb6 {[%emt 0:00:30]} axb6 {[%emt 0:
00:00]} 27. Re1+ {[%emt 1:28:26]} Kd7 {[%emt 0:00:14]} 28. Rxe8 {[%emt 0:00:11]
} Kxe8 {[%emt 0:00:06]} 29. Kf3 {[%emt 0:00:15]} Ke7 {[%emt 0:02:01]} 30. Ke4 {
[%emt 0:01:04]} g6 {[%emt 0:00:47]} 31. h4 {[%emt 0:01:01]} h5 {[%emt 0:03:49]}
32. c4 {[%emt 0:01:43]} Kf7 {[%emt 0:02:13]} 33. Kd3 {[%emt 0:00:59]} g5 {
[%emt 0:01:32]} 34. Ke4 {[%emt 0:00:31]} Kg6 {[%emt 0:03:06]} 35. f4 {[%emt 0:
00:00]} gxf4 {[%emt 0:01:47]} 36. gxf4 {[%emt 0:00:04]} f5+ {[%emt 0:00:25]}
37. Kf3 {[%emt 0:00:20]} Be7 {[%emt 0:00:47]} 38. Be5 {[%emt 0:00:19]} Bd8 {
[%emt 0:00:26]} 39. Kg3 {[%emt 0:00:32]} Kf7 {[%emt 0:00:17]} 40. Kh3 {[%emt 0:
00:00]} Ke8 {[%emt 0:01:27]} 41. Kg3 {[%emt 0:10:56]} Kd7 {[%emt 0:01:01]} 42.
Kh3 {[%emt 0:04:54]} Kc8 {[%emt 0:10:11]} 43. Kg3 {[%emt 0:09:07]} Kb7 {
[%emt 0:03:23]} 44. Bg7 {[%emt 0:06:09]} Be7 {[%emt 0:01:30]} 45. Be5 {[%emt 0:
00:00]} Bd8 {[%emt 0:08:00]} 46. Bg7 {[%emt 0:00:39]} Ka6 {[%emt 0:03:31]} 47.
Bf8 {[%emt 0:00:20]} Bf6 {[%emt 0:02:15]} 48. c5 {[%emt 0:02:10]} bxc5 {
[%emt 0:01:40]} 49. Bxc5 {[%emt 0:00:08]} Kb5 {[%emt 0:00:48]} 50. Bf8 {
[%emt 0:00:32]} Kc4 {[%emt 0:01:12]} 51. d6 {[%emt 0:00:04]} cxd6 {[%emt 0:00:
00]} 52. Bxd6 {[%emt 0:00:08]} Kd5 {[%emt 0:00:18]} 53. Bb8 {[%emt 0:00:14]}
Ke4 {[%emt 0:00:15]} 54. Bc7 {[%emt 0:00:15]} Bc3 {[%emt 0:00:35]} 55. Bd6 {
[%emt 0:02:25]} Be1+ {[%emt 0:00:18]} 56. Kg2 {[%emt 0:00:29]} Bxh4 {[%emt 0:
00:00]} 57. Bc7 {[%emt 0:00:14]} Be1 {[%emt 0:01:18]} 58. Bd6 {[%emt 0:00:29]}
Bd2 {[%emt 0:01:17]} 59. Kg3 {[%emt 0:00:10]} Bxf4+ {[%emt 0:00:43]} 0-1

[Event "44th Chess Olympiad Women 2022"]
[Site "Chennai"]
[Date "2022.07.31"]
[Round "3.17"]
[White "Van Foreest, Machteld"]
[Black "Masoumi, Sahar"]
[Result "1-0"]
[WhiteElo "2299"]
[BlackElo "1956"]
[Annotator "RC"]
[PlyCount "124"]
[EventDate "2022.??.??"]
[TimeControl "60"]

1. e4 {[%emt 0:00:07]} e5 {[%emt 0:00:11]} 2. Nf3 {[%emt 0:00:22]} Nc6 {
[%emt 0:00:06]} 3. Bc4 {[%emt 0:03:04]} Bc5 {[%emt 0:00:14]} 4. c3 {[%emt 0:00:
00]} Nf6 {[%emt 0:00:10]} 5. d4 {[%emt 0:02:10]} exd4 {[%emt 0:00:10]} 6. e5 {
[%emt 0:00:10]} d5 {[%emt 0:06:54]} 7. Bb5 {[%emt 0:00:41]} Ne4 {[%emt 0:00:32]
} 8. cxd4 {[%emt 0:00:07]} Bb6 {[%emt 0:00:26]} 9. h3 {[%emt 0:03:04]} O-O {
[%emt 0:01:10]} 10. O-O {[%emt 0:08:30]} f6 {[%emt 0:13:17]} 11. Be3 {[%emt 0:
00:00]} Ne7 {[%emt 0:12:37]} 12. Nc3 {[%emt 0:04:08]} Kh8 {[%emt 0:13:32]} 13.
Bd3 {[%emt 0:04:49]} f5 {[%emt 0:03:26]} 14. Ne2 {[%emt 0:02:13]} Ng6 {[%emt 0:
00:00]} 15. Qc1 {[%emt 0:01:16]} Be6 {[%emt 0:02:19]} 16. Ne1 {[%emt 0:06:31]}
c5 {[%emt 0:02:53]} 17. dxc5 {[%emt 0:05:00]} Rc8 {[%emt 0:00:42]} 18. b4 {
[%emt 0:01:11]} Nxe5 {[%emt 0:01:29]} 19. Qb2 {[%emt 0:00:28]} Nxd3 {[%emt 0:
00:00]} 20. Nxd3 {[%emt 0:00:06]} Bc7 {[%emt 0:00:20]} 21. Ndf4 {[%emt 0:02:20]
} Bf7 {[%emt 0:02:38]} 22. Rad1 {[%emt 0:02:10]} Qe7 {[%emt 0:03:38]} 23. Bd4 {
[%emt 0:06:41]} Qg5 {[%emt 0:01:00]} 24. g3 {[%emt 0:01:23]} Rce8 {[%emt 0:00:
00]} 25. Rd3 {[%emt 0:00:47]} Re7 {[%emt 0:01:11]} 26. Be3 {[%emt 0:05:23]} Qf6
{[%emt 0:01:35]} 27. Qxf6 {[%emt 0:01:39]} Nxf6 {[%emt 0:00:04]} 28. Nd4 {
[%emt 0:03:31]} g6 {[%emt 0:00:48]} 29. Nb5 {[%emt 0:00:50]} Be5 {[%emt 0:00:
00]} 30. Rfd1 {[%emt 0:03:18]} g5 {[%emt 0:06:07]} 31. Ng2 {[%emt 0:03:03]} Rg8
{[%emt 0:02:00]} 32. f4 {[%emt 0:05:10]} gxf4 {[%emt 0:00:48]} 33. gxf4 {
[%emt 0:00:33]} Bb2 {[%emt 0:05:13]} 34. Nd6 {[%emt 0:03:01]} Bh5 {[%emt 0:00:
00]} 35. Nxf5 {[%emt 0:01:33]} Re4 {[%emt 0:01:31]} 36. Rb1 {[%emt 0:00:52]}
Bg6 {[%emt 0:00:39]} 37. Rxb2 {[%emt 0:00:39]} Bxf5 {[%emt 0:00:03]} 38. Bd4 {
[%emt 0:00:44]} Kg7 {[%emt 0:00:38]} 39. Ne3 {[%emt 0:00:31]} Kf7+ {[%emt 0:00:
00]} 40. Rg2 {[%emt 0:00:29]} Rxg2+ {[%emt 0:00:39]} 41. Nxg2 {[%emt 0:30:39]}
Re2 {[%emt 0:30:31]} 42. Ra3 {[%emt 0:00:00]} a6 {[%emt 0:00:00]} 43. Ne3 {
[%emt 0:00:00]} Be4 {[%emt 0:00:00]} 44. c6 {[%emt 0:00:00]} bxc6 {[%emt 0:00:
00]} 45. Rxa6 {[%emt 0:00:00]} Nh5 {[%emt 0:00:00]} 46. Rxc6 {[%emt 0:00:00]}
Rd2 {[%emt 0:00:00]} 47. Bc3 {[%emt 0:00:00]} Rd3 {[%emt 0:00:00]} 48. Ng4 {
[%emt 0:00:00]} Rg3+ {[%emt 0:00:00]} 49. Kf2 {[%emt 0:00:00]} Rf3+ {[%emt 0:
00:00]} 50. Ke1 {[%emt 0:00:00]} Rxf4 {[%emt 0:00:00]} 51. b5 {[%emt 0:00:00]}
Bg2 {[%emt 0:00:00]} 52. b6 {[%emt 0:00:00]} d4 {[%emt 0:00:00]} 53. Ne5+ {
[%emt 0:01:19]} Kg7 {[%emt 0:00:52]} 54. Rc7+ {[%emt 0:01:21]} Kg8 {[%emt 0:00:
00]} 55. Rc8+ {[%emt 0:01:24]} Kg7 {[%emt 0:00:06]} 56. Bb2 {[%emt 0:01:15]}
Kf6 {[%emt 0:05:30]} 57. Nd3 {[%emt 0:00:40]} Rf1+ {[%emt 0:00:20]} 58. Kd2 {
[%emt 0:00:10]} Ke6 {[%emt 0:01:10]} 59. Bxd4 {[%emt 0:00:35]} Ng3 {[%emt 0:00:
00]} 60. Rg8 {[%emt 0:00:38]} Ne4+ {[%emt 0:00:20]} 61. Kc2 {[%emt 0:00:07]}
Nd6 {[%emt 0:00:59]} 62. Rxg2 {[%emt 0:00:09]} Kd5 {[%emt 0:00:45]} 1-0